fUSD/lending_fUSD_20240220
["ID","MTS","AMOUNT","RATE_DAILY","PERIOD"]
[314601071,1708449045512,-150.0,0.00043999,4]
[314601072,1708449045521,-267403.58622191,0.00044,30]
[314601073,1708449045530,-1974.13907759,0.00044,2]
[314601074,1708449045540,-3999.99247003,0.00044,2]
[314601075,1708449045549,-150.0,0.00044014,2]
[314601076,1708449045559,-208.0,0.00044073,26]
[314601077,1708449045568,-150.0,0.00044106,2]
[314601078,1708449045577,-1572.13,0.000442,7]
[314601079,1708449045586,-1008.49,0.000442,7]
[314601080,1708449045595,-152.0,0.00044236,7]
[314601081,1708449045604,-150.0,0.00044239,2]
[314601082,1708449045613,-404.08,0.0004424,2]
[314601083,1708449045622,-300.0,0.00044254,2]
[314601084,1708449045631,-6829.39706843,0.00044264,6]
[314601085,1708449045640,-150.0,0.00044265,2]
[314601086,1708449045649,-150.0,0.00044269,2]
[314601087,1708449045659,-150.0,0.00044289,2]
[314601088,1708449045668,-150.0,0.00044303,2]
[314601089,1708449045678,-150.0,0.00044354,2]
[314601090,1708449045687,-159.0,0.00044361,7]
[314601092,1708449045697,-436.26,0.00044384,2]
[314601093,1708449045707,-412.6,0.00044384,2]
[314601094,1708449045716,-971.61,0.00044384,2]
[314601095,1708449045726,-154.22,0.00044384,2]
[314601096,1708449045735,-2000.0,0.000444,2]
[314601097,1708449045744,-150.0,0.00044431,2]
[314601099,1708449045753,-1112.47729091,0.00044434,11]
[314601100,1708449045762,-150.0,0.00044462,2]
[314601102,1708449045771,-150.0,0.00044477,2]
[314601104,1708449045780,-150.0,0.00044497,2]
[314601106,1708449045789,-169.0,0.0004451,7]
[314601108,1708449045799,-152.0,0.0004451,7]
[314601110,1708449045809,-150.0,0.00044558,2]
[314601112,1708449045818,-150.0,0.00044562,2]
[314601114,1708449045827,-150.0,0.00044594,2]
[314601116,1708449045837,-164.15,0.000446,5]
[314601119,1708449045846,-164.15,0.000446,5]
[314601121,1708449045856,-786.19,0.000446,5]
[314601123,1708449045865,-786.19,0.000446,5]
[314601125,1708449045874,-786.19,0.000446,5]
[314601127,1708449045883,-786.19,0.000446,5]
[314601128,1708449045894,-786.19,0.000446,5]
[314601130,1708449045904,-786.19,0.000446,5]
[314601131,1708449045913,-786.19,0.000446,5]
[314601132,1708449045923,-786.19,0.000446,5]
[314601133,1708449045932,-786.19,0.000446,5]
[314601134,1708449045943,-786.19,0.000446,5]
[314601135,1708449045953,-786.19,0.000446,5]
[314601136,1708449045968,-786.19,0.000446,5]
[314601137,1708449045978,-786.19,0.000446,5]
[314601138,1708449045987,-786.19,0.000446,5]
[314601139,1708449045997,-786.19,0.000446,5]
[314601140,1708449046006,-786.19,0.000446,5]
[314601141,1708449046015,-786.19,0.000446,5]
[314601142,1708449046025,-786.19,0.000446,5]
[314601143,1708449046035,-786.19,0.000446,5]
[314601144,1708449046044,-786.19,0.000446,5]
[314601145,1708449046053,-150.0,0.00044648,2]
[314601146,1708449046062,-800.0,0.00044657,2]
[314601147,1708449046071,-254.519455,0.00044658,14]
[314601148,1708449046080,-1000.0,0.000447,2]
[314601149,1708449046091,-208.0,0.0004472,30]
[314601150,1708449046100,-153.27826504,0.00044729,24]
[314601151,1708449046112,-150.0,0.00044779,2]
[314601152,1708449046128,-150.0,0.0004479,2]
[314601153,1708449046138,-150.0,0.00044796,2]
[314601154,1708449046149,-150.0,0.00044811,2]
[314601155,1708449046158,-158.14,0.00044817,2]
[314601156,1708449046168,-150.0,0.00044855,2]
[314601157,1708449046177,-150.0,0.00044878,2]
[314601158,1708449046186,-1572.13,0.000449,7]
[314601159,1708449046195,-1008.49,0.000449,7]
[314601160,1708449046205,-310.0,0.000449,19]
[314601161,1708449046218,-1000.0,0.000449,4]
[314601162,1708449046227,-150.0,0.00044913,2]
[314601163,1708449046236,-300.0,0.00044917,2]
[314601164,1708449046245,-101758.34902226,0.00044969,2]
[314601165,1708449046255,-150.0,0.00044971,2]
[314601166,1708449046264,-313.67043378,0.00044985,60]
[314601167,1708449046273,-5000.0,0.00044986,4]
[314601168,1708449046282,-100000.0,0.00045,35]
[314601169,1708449046291,-1177.84425457,0.00045,30]
[314601170,1708449046300,-447.88010286,0.00045,4]
[314601171,1708449046309,-405.25191323,0.00045,4]
[314601172,1708449046318,-2630.8424537,0.00045,30]
[314601173,1708449046328,-19802.45444084,0.00045,30]
[314601174,1708449046360,-1286.17540961,0.00045,30]
[314601175,1708449046370,-10000.0,0.00045,120]
[314601176,1708449046379,-11705.94374315,0.00045,10]
[314601177,1708449046389,-168.0,0.00045,90]
[314601178,1708449046399,-150.0,0.00045046,2]
[314601179,1708449046408,-6829.39706843,0.00045048,7]
[314601180,1708449046417,-150.0,0.00045063,2]
[314601181,1708449046426,-726.66914669,0.00045081,5]
[314601182,1708449046436,-150.0,0.00045086,2]
[314601183,1708449046446,-150.0,0.00045096,2]
[314601184,1708449046455,-150.0,0.000451,2]
[314601185,1708449046466,-200.0,0.00045105,20]
[314601186,1708449046476,-800.0,0.00045105,20]
[314601187,1708449046485,-200.0,0.00045105,30]
[314601188,1708449046494,-200.0,0.00045105,30]
[314601189,1708449046503,-150.0,0.00045115,2]
[314601190,1708449046512,-1102.64,0.00045126,2]
[314601192,1708449046521,-150.0,0.0004513,2]
[314601194,1708449046530,-300.0,0.00045134,2]
[314601195,1708449046539,-150.0,0.00045144,2]
[314601196,1708449046548,-1112.47729091,0.00045167,12]
[314601197,1708449046557,-150.0,0.00045179,2]
[314601198,1708449046566,-150.0,0.00045182,2]
[314601199,1708449046577,-412.33,0.00045205,2]
[314601200,1708449046587,-1500.0,0.00045224,2]
[314601201,1708449046596,-1500.0,0.00045252,2]
[314601202,1708449046604,-150.0,0.00045266,2]
[314601203,1708449046614,-2811.96366066,0.000453,30]
[314601204,1708449046623,-150.0,0.00045305,2]
[314601205,1708449046633,-178.85611128,0.00045319,2]
[314601206,1708449046642,-150.0,0.00045347,2]
[314601207,1708449046651,-1500.0,0.00045349,2]
[314601208,1708449046660,-150.0,0.00045437,2]
[314601209,1708449046669,-150.0,0.00045444,2]
[314601210,1708449046678,-158.14,0.00045458,2]
[314601211,1708449046688,-150.0,0.0004547,2]
[314601212,1708449046697,-150.0,0.00045471,2]
[314601213,1708449046708,-608.04891047,0.00045479,2]
[314601214,1708449046717,-254.519455,0.00045479,14]
[314601215,1708449046727,-763.71130156,0.000455,10]
[314601216,1708449046737,-504.423353,0.000455,14]
[314601217,1708449046746,-1500.0,0.00045502,2]
[314601218,1708449046755,-208.0,0.00045521,29]
[314601219,1708449046764,-800.0,0.00045572,20]
[314601220,1708449046773,-150.0,0.00045583,2]
[314601221,1708449046783,-438.71,0.00045611,2]
[314601222,1708449046792,-863.22,0.00045662,2]
[314601223,1708449046801,-168.0,0.00045685,90]
[314601224,1708449046810,-350.28649824,0.00045746,2]
[314601225,1708449046819,-208.0,0.0004576,30]
[314601226,1708449046828,-463.03027328,0.0004579,2]
[314601227,1708449046837,-8816.84639177,0.0004579,2]
[314601228,1708449046847,-458.49591498,0.0004579,2]
[314601229,1708449046856,-189.99518278,0.0004579,2]
[314601230,1708449046865,-40268.889802,0.000458,2]
[314601231,1708449046874,-352038.7234379,0.000458,5]
[314601232,1708449046883,-1572.13,0.000458,7]
[314601233,1708449046895,-1008.49,0.000458,7]
[314601234,1708449046904,-6829.39706843,0.00045832,7]
[314601235,1708449046914,-547.35,0.00045841,15]
[314601236,1708449046923,-1500.0,0.0004585,2]
[314601237,1708449046933,-150.0,0.00045863,30]
[314601238,1708449046942,-150.0,0.00045863,30]
[314601239,1708449046951,-150.00000001,0.00045863,30]
[314601240,1708449046964,-150.0,0.00045863,30]
[314601241,1708449046973,-150.0,0.00045863,30]
[314601242,1708449046983,-150.0,0.00045863,30]
[314601243,1708449046992,-150.0,0.00045863,30]
[314601244,1708449047001,-150.0,0.00045863,30]
[314601245,1708449047010,-150.0,0.00045863,30]
[314601246,1708449047019,-150.0,0.00045863,30]
[314601247,1708449047028,-150.0,0.00045863,30]
[314601248,1708449047037,-150.0,0.00045863,30]
[314601249,1708449047046,-159.56959845,0.00045863,30]
[314601250,1708449047055,-3000.0,0.00045876,6]
[314601251,1708449047063,-150.0,0.00045889,5]
[314601252,1708449047072,-171.89972875,0.00045889,5]
[314601253,1708449047082,-150.0,0.00045889,5]
[314601254,1708449047091,-150.0,0.00045889,5]
[314601255,1708449047100,-150.0,0.00045889,5]
[314601256,1708449047109,-2766546.60281365,0.0004589,120]
[314601257,1708449047121,-7300.57991543,0.0004589,120]
[314601258,1708449047132,-105083.15540379,0.0004589,120]
[314601259,1708449047144,-4234.925725,0.0004589,120]
[314601260,1708449047167,-174774.78594992,0.0004589,120]
[314601261,1708449047176,-7305.9477573,0.0004589,2]
[314601262,1708449047185,-64524.84382454,0.000459,2]
[314601263,1708449047206,-1534.44126738,0.00042435,17]
[314601264,1708449047217,-21192.93270302,0.000459,2]
[314601265,1708449047228,-289.62,0.000459,2]
[314601266,1708449047729,-1319.31453317,0.00040688,2]
[314601267,1708449047739,-1247.93546683,0.00041142,2]
[314601268,1708449047750,-71.37906634,0.00041142,2]
[314601269,1708449047759,-391.79,0.0004403,2]
[314601270,1708449047768,-988.83093366,0.00044207,6]
[314601271,1708449047816,-1581.68478149,0.00044207,6]
[314601272,1708449047825,-1670.01205787,0.000459,2]
[314601273,1708449047836,-2563.15,0.000459,2]
[314601274,1708449047848,-8680.60000002,0.000459,2]
[314601275,1708449047859,-1582.50625508,0.000459,2]
[314601276,1708449047870,-20522.64484562,0.000459,2]
[314601277,1708449047898,-276.60435764,0.000459,2]
[314601278,1708449177081,151.97,0.00027397,2]
[314601280,1708449436141,181.0,0.0003,4]
[314601281,1708449436161,17.54916769,0.0003,4]
[314601282,1708449574048,207.0,0.00030489,2]
[314601283,1708449642112,-154.0,0.00032481,2]
[314601284,1708449727798,104.0,0.00027397,2]
[314601285,1708449727848,190.84,0.00027397,2]
[314601287,1708450000114,-184.67358579,0.00031948,2]
[314601288,1708450112462,-2700.0,0.00031948,2]
[314601289,1708450112482,-300.0,0.00031948,2]
[314601290,1708450112492,-22.32641421,0.00031948,2]
[314601291,1708450112502,-294.84,0.00031963,2]
[314601292,1708450112511,-1004.0,0.00032,5]
[314601293,1708450112520,-151.0,0.00032381,2]
[314601294,1708450112529,-800.0,0.00032493,2]
[314601295,1708450112538,-151.97,0.00032534,2]
[314601296,1708450112548,-275.86358579,0.00032928,4]
[314601297,1708450152096,-250.0,0.00032928,4]
[314601298,1708450194940,-41.34432575,0.00032928,4]
[314601299,1708450194963,-151.0,0.00032929,2]
[314601301,1708450206728,62.65567425,0.00027397,2]
[314601302,1708450206753,89.31432575,0.00027397,2]
[314601311,1708450232125,-151.0,0.00033477,2]
[314601312,1708450232135,-164.06564083,0.00033925,2]
[314601313,1708450232145,-499.99,0.00033925,2]
[314601314,1708450232154,-151.0,0.00034025,2]
[314601315,1708450232164,-151.97,0.00034247,2]
[314601316,1708450232173,-207.0,0.00034498,7]
[314601317,1708450232187,-402.55543455,0.00034498,2]
[314601318,1708450232199,-1049.03456545,0.00034498,2]
[314601319,1708450232209,-151.0,0.00034573,2]
[314601320,1708450232218,-151.0,0.00035121,2]
[314601321,1708450232228,-10063.385557,0.00035301,2]
[314601322,1708450232237,-466.54,0.00035479,2]
[314601323,1708450232247,-151.0,0.00035668,7]
[314601324,1708450232259,-3000.0,0.0003585,2]
[314601325,1708450232269,-155.0,0.00036182,2]
[314601326,1708450232278,-177.58,0.00036182,2]
[314601327,1708450232288,-151.0,0.00036216,7]
[314601328,1708450232298,-294.84,0.0003653,2]
[314601329,1708450232307,-177.58,0.0003673,2]
[314601330,1708450232316,-151.0,0.00036764,7]
[314601331,1708450232328,-200.0,0.00036848,2]
[314601332,1708450232339,-150.0,0.00036899,2]
[314601333,1708450232349,-400.0,0.00036899,3]
[314601334,1708450232359,-1247.0482,0.000369,2]
[314601335,1708450232369,-235.8436918,0.00036999,4]
[314601336,1708450232378,-12653.15,0.00037,2]
[314601337,1708450232388,-207.0,0.00037049,12]
[314601338,1708450232398,-153.64,0.00037065,2]
[314601339,1708450232407,-500.0,0.00037148,2]
[314601340,1708450232416,-23900.0,0.00037182,2]
[314601341,1708450232426,-2000.0,0.00037211,2]
[314601342,1708450232436,-200.0,0.00037227,2]
[314601343,1708450232446,-250.0,0.00037257,2]
[314601344,1708450232455,-157.79,0.00037259,2]
[314601345,1708450232464,-162.42,0.00037263,2]
[314601346,1708450232474,-11348.82207854,0.00037269,2]
[314601347,1708450232486,-514.13516879,0.00037269,2]
[314601348,1708450232498,-3672.93275267,0.00037269,2]
[314601349,1708450232508,-177.58,0.00037278,2]
[314601350,1708450232518,-500.0,0.00037295,2]
[314601351,1708450232528,-312.0,0.00037309,2]
[314601352,1708450232537,-151.0,0.00037312,7]
[314601353,1708450232547,-316.44,0.0003732,2]
[314601354,1708450232556,-200.0,0.00037323,2]
[314601355,1708450232566,-365.54724733,0.00037323,2]
[314601356,1708450232593,-270.07275267,0.00037323,2]
[314601357,1708450232602,-150.0,0.00037332,2]
[314601358,1708450232612,-688.0,0.00037348,2]
[314601359,1708450232621,-1687.61,0.00037361,2]
[314601360,1708450232631,-476.57,0.00037372,2]
[314601361,1708450232640,-180.92,0.00037389,10]
[314601362,1708450232650,-250.0,0.00037422,2]
[314601363,1708450232659,-1281.17,0.00037445,2]
[314601364,1708450232669,-208.52,0.00037517,2]
[314601365,1708450232679,-466.54,0.00037743,2]
[314601366,1708450232688,-177.58,0.00037826,2]
[314601367,1708450232698,-151.0,0.0003786,7]
[314601368,1708450232707,-164.06564083,0.00038317,2]
[314601369,1708450232716,-151.87,0.00038356,2]
[314601370,1708450232725,-472.32,0.00038356,15]
[314601371,1708450232738,-258.29464927,0.00038374,2]
[314601372,1708450232748,-4135.21550055,0.000384,2]
[314601373,1708450232757,-151.0,0.00038408,7]
[314601374,1708450232767,-165.79,0.00038753,2]
[314601375,1708450232776,-476.57,0.00038755,2]
[314601376,1708450232938,-151.0,0.00038956,7]
[314601377,1708450232949,-3000.0,0.0003908,2]
[314601378,1708450232959,-560.0,0.00039486,5]
[314601379,1708450232969,-151.0,0.00039504,7]
[314601380,1708450232979,-207.0,0.00039599,17]
[314601381,1708450232988,-250.0,0.00039642,2]
[314601382,1708450233000,-162.42,0.00039747,2]
[314601383,1708450233009,-1000.0,0.000398,2]
[314601384,1708450233018,-532.16,0.0003989,10]
[314601385,1708450233028,-4469.4172,0.000399,2]
[314601386,1708450233037,-4860.03728802,0.00039908,2]
[314601387,1708450233046,-250.0,0.00039916,2]
[314601388,1708450233056,-1586.24707324,0.0004,2]
[314601389,1708450233065,-2072.0168433,0.0004,2]
[314601390,1708450233076,-233.54722154,0.0004,2]
[314601391,1708450233085,-233.54722154,0.0004,2]
[314601392,1708450233095,-233.54722154,0.0004,2]
[314601393,1708450233104,-233.54722154,0.0004,2]
[314601394,1708450233113,-233.54722154,0.0004,2]
[314601395,1708450233123,-233.54722154,0.0004,2]
[314601396,1708450233132,-233.54722154,0.0004,2]
[314601397,1708450233141,-233.54722154,0.0004,2]
[314601398,1708450233150,-233.54722154,0.0004,2]
[314601399,1708450233160,-233.54722154,0.0004,2]
[314601400,1708450233169,-233.54722154,0.0004,2]
[314601401,1708450233178,-500.0,0.0004,60]
[314601402,1708450233187,-3007.55731541,0.0004,15]
[314601403,1708450233196,-6645.58078864,0.00040004,2]
[314601404,1708450233205,-466.54,0.00040007,2]
[314601405,1708450233214,-1000.0,0.00040007,2]
[314601406,1708450233224,-49193.73405212,0.00040008,15]
[314601407,1708450233235,-3253.02527669,0.00040008,8]
[314601408,1708450233244,-1626.51263835,0.00040015,8]
[314601409,1708450233256,-1540.86111653,0.00040022,8]
[314601410,1708450233265,-151.0,0.00040052,7]
[314601411,1708450233274,-476.57,0.00040137,2]
[314601412,1708450233283,-233.54722154,0.00040141,2]
[314601413,1708450233294,-233.54722154,0.00040141,2]
[314601414,1708450233303,-233.54722154,0.00040141,2]
[314601415,1708450233312,-233.54722154,0.00040151,2]
[314601416,1708450233322,-250.0,0.0004019,2]
[314601417,1708450233334,-233.54722154,0.0004019,2]
[314601418,1708450233343,-233.54722154,0.0004019,2]
[314601419,1708450233352,-330.18,0.000402,4]
[314601420,1708450233361,-330.18,0.000402,4]
[314601421,1708450233370,-330.18,0.000402,4]
[314601422,1708450233379,-330.18,0.000402,4]
[314601423,1708450233388,-330.18,0.000402,4]
[314601424,1708450233397,-330.18,0.000402,4]
[314601425,1708450233407,-330.18,0.000402,4]
[314601426,1708450233416,-330.18,0.000402,4]
[314601427,1708450233425,-330.18,0.000402,4]
[314601428,1708450233434,-330.18,0.000402,4]
[314601429,1708450233443,-330.18,0.000402,4]
[314601430,1708450233453,-330.18,0.000402,4]
[314601431,1708450233463,-330.18,0.000402,4]
[314601432,1708450233472,-330.18,0.000402,4]
[314601433,1708450233481,-330.18,0.000402,4]
[314601434,1708450233491,-330.18,0.000402,4]
[314601435,1708450233500,-330.18,0.000402,4]
[314601436,1708450233510,-330.18,0.000402,4]
[314601437,1708450233522,-330.18,0.000402,4]
[314601438,1708450233532,-330.18,0.000402,4]
[314601439,1708450233541,-233.54722154,0.00040241,2]
[314601440,1708450233550,-233.54722154,0.00040241,2]
[314601441,1708450233559,-233.54722154,0.00040241,2]
[314601442,1708450233568,-233.54722154,0.00040241,2]
[314601443,1708450233579,-233.54722154,0.0004025,2]
[314601444,1708450233588,-233.54722154,0.00040251,2]
[314601445,1708450233598,-233.54722154,0.00040251,2]
[314601446,1708450233607,-233.54722154,0.00040251,2]
[314601447,1708450233617,-233.54722154,0.00040251,2]
[314601448,1708450233627,-233.54722154,0.00040251,2]
[314601449,1708450233636,-233.54722154,0.00040251,2]
[314601450,1708450233645,-233.54722154,0.00040251,2]
[314601451,1708450233654,-233.54722154,0.00040251,2]
[314601452,1708450233664,-233.54722154,0.00040251,2]
[314601453,1708450233673,-233.54722154,0.00040251,2]
[314601454,1708450233683,-233.54722154,0.00040251,2]
[314601455,1708450233693,-233.54722154,0.00040251,2]
[314601456,1708450233702,-233.54722154,0.00040251,2]
[314601457,1708450233711,-233.54722154,0.00040251,2]
[314601458,1708450233720,-233.54722154,0.00040251,2]
[314601459,1708450233729,-233.54722154,0.00040251,2]
[314601460,1708450233739,-233.54722154,0.00040251,2]
[314601461,1708450233748,-233.54722154,0.00040251,2]
[314601462,1708450233757,-233.54722154,0.00040251,2]
[314601463,1708450233766,-233.54722154,0.00040251,2]
[314601464,1708450233775,-233.54722154,0.00040251,2]
[314601465,1708450233784,-233.54722154,0.00040251,2]
[314601466,1708450233793,-233.54722154,0.00040251,2]
[314601467,1708450233803,-233.54722154,0.00040251,2]
[314601468,1708450233812,-233.54722154,0.00040251,2]
[314601469,1708450233822,-233.54722154,0.00040251,2]
[314601470,1708450233833,-233.54722154,0.00040251,2]
[314601471,1708450233842,-233.54722154,0.00040251,2]
[314601472,1708450233850,-1000.0,0.0004026,2]
[314601473,1708450233859,-909.0162,0.0004026,2]
[314601474,1708450233868,-140402.38629073,0.00040261,2]
[314601475,1708450233882,-383.14260203,0.00040261,2]
[314601476,1708450233893,-365.87288606,0.00040261,2]
[314601477,1708450233908,-7081.04461949,0.00040261,2]
[314601478,1708450233919,-14109.65468126,0.00040261,2]
[314601479,1708450233992,-2532.306096,0.00040261,2]
[314601480,1708450234004,-1197.54386315,0.00040261,2]
[314601481,1708450234018,-5551.36810001,0.00040261,2]
[314601482,1708450234029,-384.86813329,0.00040261,2]
[314601483,1708450234041,-303.77486671,0.00040261,2]
[314601484,1708450234052,-700.0,0.00040261,2]
[314601485,1708450234095,-2514.22406613,0.00040261,2]
[314601486,1708450234106,-69473.81379514,0.00040261,2]
[314601487,1708450234116,-352.7045,0.00040261,2]
[314601488,1708450234125,-375.6833,0.00040261,2]
[314601489,1708450234134,-79690.04804069,0.00040261,2]
[314601490,1708450234145,-3436.72095758,0.00040261,2]
[314601491,1708450234157,-3745.58890173,0.00040261,2]
[314601492,1708450234166,-1000.0,0.00040324,2]
[314601493,1708450234175,-1000.0,0.000404,3]
[314601494,1708450234185,-153.06599982,0.0004054,8]
[314601495,1708450234194,-527.3725219,0.0004054,2]
[314601496,1708450234203,-766.47036697,0.00040556,5]
[314601497,1708450234212,-168.69666622,0.00040556,2]
[314601498,1708450234222,-210.0,0.00040589,4]
[314601499,1708450234232,-1026.31096852,0.0004059,4]
[314601500,1708450234242,-151.0,0.000406,7]
[314601501,1708450234252,-1453.9,0.00040623,2]
[314601502,1708450234260,-195.92919898,0.0004063,2]
[314601503,1708450234270,-43311.95759586,0.0004064,7]
[314601504,1708450234297,-404.54908457,0.0004064,7]
[314601505,1708450235176,-1468.56,0.00037338,2]
[314601507,1708450235186,-1468.56,0.00038982,2]
[314601509,1708450235196,-443.47,0.0003989,10]
[314601511,1708450235205,-1468.56,0.00040626,2]
[314601513,1708450235216,-20570.35,0.0004064,7]
[314601547,1708450238042,-1542.21,0.0004064,7]
[314601548,1708450238106,-127916.66045679,0.0004064,7]
[314601549,1708450238171,-5144.9,0.0004064,7]
[314601550,1708450238182,-51463.5039651,0.0004064,7]
[314601551,1708450238239,-148.60257713,0.0004064,7]
[314601552,1708450238265,-1532.78142994,0.0004064,7]
[314601553,1708450238277,-1184.84828064,0.0004064,7]
[314601554,1708450238289,-611.56465881,0.0004064,7]
[314601555,1708450238300,-1502.36837134,0.0004064,7]
[314601556,1708450238311,-5144.9,0.0004064,7]
[314601557,1708450238339,-53711.91206228,0.0004064,7]
[314601558,1708450238425,-13007.99922983,0.0004064,7]
[314601559,1708450238463,-278.2402333,0.0004064,7]
[314601561,1708450238474,-3310.307,0.0004064,7]
[314601563,1708450238484,-460.89446664,0.0004064,7]
[314601565,1708450238496,-254.99999,0.0004064,7]
[314601567,1708450238506,-12527.36025676,0.0004064,7]
[314601570,1708450238530,-258794.41224849,0.0004064,7]
[314601746,1708450244627,-5806.44661279,0.0004064,7]
[314601748,1708450244639,-11059.47843335,0.0004064,7]
[314601750,1708450244696,-1016.55,0.0004064,7]
[314601751,1708450244707,-466.27607955,0.0004064,7]
[314601752,1708450244717,-300.01047325,0.0004064,7]
[314601753,1708450244728,-6467.01973398,0.0004064,7]
[314601754,1708450244766,-5112.1,0.0004064,7]
[314601756,1708450244777,-1322.46730531,0.0004064,7]
[314601757,1708450244833,-12717.585,0.0004064,7]
[314601758,1708450244892,-153087.66081912,0.0004064,7]
[314601759,1708450244904,-294568.3064195,0.0004064,7]
[314601760,1708450244915,-255.34770253,0.0004064,7]
[314601761,1708450244957,-346.38069345,0.0004064,7]
[314601762,1708450244977,-513.18500005,0.0004064,7]
[314601763,1708450244989,-47709.11131964,0.0004064,7]
[314601764,1708450244999,-121698.4485754,0.0004064,14]
[314601765,1708450245010,-1727.001711,0.0004064,30]
[314601766,1708450245019,-8631.59089359,0.0004064,7]
[314601767,1708450245029,-500.0,0.0004064,60]
[314601768,1708450245039,-1000.0,0.0004064,2]
[314601769,1708450245049,-250.0,0.00040641,2]
[314601770,1708450245058,-150.0,0.00040641,2]
[314601771,1708450245067,-150.0,0.00040641,7]
[314601772,1708450245079,-1000.0,0.00040655,2]
[314601773,1708450245089,-300.0,0.00040889,2]
[314601774,1708450245100,-300.0,0.00040889,2]
[314601775,1708450245110,-300.0,0.00040889,2]
[314601776,1708450245119,-422.08920151,0.00040889,2]
[314601777,1708450245129,-4860.03728802,0.00040943,3]
[314601778,1708450245138,-153.95,0.00040983,2]
[314601779,1708450245148,-962.64977538,0.00041,7]
[314601780,1708450245157,-6645.58078861,0.00041027,3]
[314601781,1708450245167,-1000.0,0.00041095,60]
[314601782,1708450245176,-151.97,0.00041096,2]
[314601783,1708450245186,-294.84,0.00041096,2]
[314601784,1708450245195,-153.0,0.00041148,7]
[314601785,1708450245204,-250.0,0.00041189,7]
[314601786,1708450245213,-476.57,0.0004152,2]
[314601787,1708450245223,-153.0,0.00041696,7]
[314601788,1708450245234,-2679.0,0.000418,3]
[314601789,1708450245249,-13148.0,0.000418,3]
[314601790,1708450245258,-312.0,0.00041973,2]
[314601791,1708450245267,-3921.16044687,0.00041977,4]
[314601792,1708450245280,-616.46890391,0.00041977,4]
[314601793,1708450245305,-322.40793724,0.00041977,4]
[314601794,1708450245314,-40.78812289,0.00042,14]
[314601795,1708450245339,-2664.68837097,0.00042,14]
[314601796,1708450245348,-3381.69208615,0.00042,21]
[314601797,1708450245358,-688.0,0.00042016,2]
[314601798,1708450245368,-6645.58078861,0.00042051,4]
[314601799,1708450245377,-472.32,0.00042092,15]
[314601800,1708450245386,-766.4703669,0.00042135,5]
[314601801,1708450245396,-207.0,0.00042149,23]
[314601804,1708450245406,-2000.0,0.000422,2]
[314601806,1708450245415,-162.42,0.00042231,2]
[314601808,1708450245424,-153.0,0.00042244,7]
[314601809,1708450245433,-783.0,0.00042255,5]
[314601812,1708450245443,-1468.56,0.00042269,2]
[314601813,1708450245452,-466.54,0.00042271,2]
[314601814,1708450245462,-330.18,0.000425,4]
[314601815,1708450245471,-330.18,0.000425,4]
[314601816,1708450245480,-330.18,0.000425,4]
[314601817,1708450245489,-330.18,0.000425,4]
[314601818,1708450245498,-330.18,0.000425,4]
[314601819,1708450245507,-330.18,0.000425,4]
[314601820,1708450245517,-330.18,0.000425,4]
[314601822,1708450245526,-330.18,0.000425,4]
[314601823,1708450245535,-330.18,0.000425,4]
[314601824,1708450245545,-330.18,0.000425,4]
[314601825,1708450245553,-330.18,0.000425,4]
[314601826,1708450245562,-330.18,0.000425,4]
[314601827,1708450245572,-330.18,0.000425,4]
[314601828,1708450245584,-330.18,0.000425,4]